[Event "*** MasterClass Titled Tuesday Blitz"]
[Site "Chess.com"]
[Date "2017.11.07"]
[Round "3"]
[White "AbdAlAgathos"]
[Black "hypert"]
[Result "0-1"]
[WhiteElo "2222"]
[BlackElo "2371"]
[TimeControl "180+2"]
[EndTime "14:45:12 PST"]
[Termination "hypert won by resignation"]

1. e4 {[%clk 0:03:01.9]} 1... c5 {[%clk 0:02:59.9]} 2. Nf3 {[%clk 0:03:03.1]}
2... Nc6 {[%clk 0:03:01.2]} 3. Bb5 {[%clk 0:03:03.2]} 3... g6 {[%clk 0:03:00.6]}
4. Bxc6 {[%clk 0:03:03.8]} 4... bxc6 {[%clk 0:03:02.5]} 5. O-O {[%clk
0:03:03.5]} 5... Bg7 {[%clk 0:03:04]} 6. Re1 {[%clk 0:03:04.9]} 6... Nh6 {[%clk
0:03:02.4]} 7. c3 {[%clk 0:03:04.4]} 7... O-O {[%clk 0:03:02.1]} 8. h3 {[%clk
0:03:02.4]} 8... f5 {[%clk 0:03:02]} 9. e5 {[%clk 0:02:58.2]} 9... d6 {[%clk
0:03:02.2]} 10. exd6 {[%clk 0:02:41.4]} 10... exd6 {[%clk 0:03:02]} 11. d4
{[%clk 0:02:41.7]} 11... cxd4 {[%clk 0:03:01.3]} 12. Nxd4 {[%clk 0:02:39.4]}
12... c5 {[%clk 0:02:55.6]} 13. Nb5 {[%clk 0:02:29.2]} 13... Nf7 {[%clk
0:02:54]} 14. Bf4 {[%clk 0:01:55.1]} 14... Be5 {[%clk 0:02:46.3]} 15. Bxe5
{[%clk 0:01:40.9]} 15... dxe5 {[%clk 0:02:47.9]} 16. N1a3 {[%clk 0:01:22.8]}
16... a6 {[%clk 0:02:45]} 17. Qxd8 {[%clk 0:01:22.5]} 17... Rxd8 {[%clk
0:02:46.9]} 18. Nc7 {[%clk 0:01:23.7]} 18... Ra7 {[%clk 0:02:40.9]} 19. Rad1
{[%clk 0:00:58]} 19... Rxd1 {[%clk 0:02:36.1]} 20. Rxd1 {[%clk 0:00:59.9]} 20...
Rxc7 {[%clk 0:02:36.6]} 21. Nc4 {[%clk 0:01:01.5]} 21... Be6 {[%clk 0:02:29.9]}
22. Nb6 {[%clk 0:00:54.6]} 22... Kf8 {[%clk 0:02:26.8]} 23. a4 {[%clk
0:00:50.8]} 23... Ke7 {[%clk 0:02:26.3]} 24. a5 {[%clk 0:00:51.8]} 24... Rc6
{[%clk 0:02:25.8]} 25. b4 {[%clk 0:00:43.9]} 25... Rd6 {[%clk 0:02:22.3]} 26.
Rc1 {[%clk 0:00:37.5]} 26... cxb4 {[%clk 0:02:19.9]} 27. cxb4 {[%clk 0:00:39.4]}
27... Rd4 {[%clk 0:02:19.5]} 28. Rc7+ {[%clk 0:00:33.9]} 28... Kd6 {[%clk
0:02:14]} 29. Ra7 {[%clk 0:00:34.5]} 29... Rxb4 {[%clk 0:02:13.6]} 30. Rxa6
{[%clk 0:00:34.6]} 30... Rb1+ {[%clk 0:02:13.8]} 31. Kh2 {[%clk 0:00:35.4]}
31... Ra1 {[%clk 0:02:15.2]} 32. Na4+ {[%clk 0:00:21.9]} 32... Ke7 {[%clk
0:02:07.7]} 33. Nc5 {[%clk 0:00:22.6]} 33... Bc4 {[%clk 0:02:04.3]} 34. Ra7+
{[%clk 0:00:23.5]} 34... Kd6 {[%clk 0:02:02.3]} 35. Nb7+ {[%clk 0:00:22]} 35...
Kc6 {[%clk 0:01:59.4]} 36. g4 {[%clk 0:00:11.1]} 36... Nd6 {[%clk 0:01:58.4]}
37. Nd8+ {[%clk 0:00:11.9]} 37... Kd5 {[%clk 0:01:59.1]} 38. Rxh7 {[%clk
0:00:12.2]} 38... fxg4 {[%clk 0:01:58.9]} 39. hxg4 {[%clk 0:00:14.1]} 39... Rxa5
{[%clk 0:01:59.6]} 40. Rg7 {[%clk 0:00:14.9]} 40... Bd3 {[%clk 0:02:00.6]} 41.
Rd7 {[%clk 0:00:14.8]} 41... Ra3 {[%clk 0:01:55.4]} 42. Nb7 {[%clk 0:00:13.8]}
42... Kc6 {[%clk 0:01:56.1]} 43. Rxd6+ {[%clk 0:00:14.7]} 43... Kxb7 {[%clk
0:01:57.2]} 44. Re6 {[%clk 0:00:16.6]} 44... Ra5 {[%clk 0:01:55.7]} 45. Kg3
{[%clk 0:00:17.7]} 45... Kc7 {[%clk 0:01:55.8]} 46. f4 {[%clk 0:00:18.8]} 46...
exf4+ {[%clk 0:01:53.2]} 47. Kxf4 {[%clk 0:00:20.7]} 47... Kd7 {[%clk
0:01:46.7]} 48. Rb6 {[%clk 0:00:19.6]} 48... Ke7 {[%clk 0:01:45.9]} 49. Rb3
{[%clk 0:00:20.4]} 49... Bc4 {[%clk 0:01:41.4]} 50. Rb6 {[%clk 0:00:20.5]} 50...
Bf7 {[%clk 0:01:36.1]} 51. Rc6 {[%clk 0:00:16.6]} 51... Kf8 {[%clk 0:01:36]} 52.
Rb6 {[%clk 0:00:16.8]} 52... Kg7 {[%clk 0:01:36.9]} 53. g5 {[%clk 0:00:16.2]}
53... Ra4+ {[%clk 0:01:34.9]} 54. Kg3 {[%clk 0:00:17.2]} 54... Kf8 {[%clk
0:01:34.2]} 55. Rb7 {[%clk 0:00:17.5]} 55... Rd4 {[%clk 0:01:32.6]} 56. Rc7
{[%clk 0:00:17.9]} 56... Be6 {[%clk 0:01:33.4]} 57. Kf3 {[%clk 0:00:17.3]} 57...
Rd7 {[%clk 0:01:34]} 58. Rc5 {[%clk 0:00:17.5]} 58... Ke7 {[%clk 0:01:32.2]} 59.
Ra5 {[%clk 0:00:17.4]} 59... Bf5 {[%clk 0:01:33.1]} 60. Kf4 {[%clk 0:00:18.7]}
60... Ke6 {[%clk 0:01:32.5]} 61. Ra6+ {[%clk 0:00:19.5]} 61... Rd6 {[%clk
0:01:33.4]} 62. Ra4 {[%clk 0:00:19.1]} 62... Rb6 {[%clk 0:01:32.3]} 63. Rc4
{[%clk 0:00:19.8]} 63... Kd5 {[%clk 0:01:32.3]} 64. Ra4 {[%clk 0:00:20]} 64...
Rc6 {[%clk 0:01:33.5]} 65. Ra5+ {[%clk 0:00:20.8]} 65... Rc5 {[%clk 0:01:34.3]}
66. Ra8 {[%clk 0:00:21]} 66... Rc4+ {[%clk 0:01:35]} 67. Kf3 {[%clk 0:00:22.1]}
67... Ke5 {[%clk 0:01:32.9]} 68. Re8+ {[%clk 0:00:21.7]} 68... Be6 {[%clk
0:01:33.7]} 69. Rf8 {[%clk 0:00:22.7]} 69... Rc3+ {[%clk 0:01:26.3]} 70. Kf2
{[%clk 0:00:21.7]} 70... Bf5 {[%clk 0:01:27.7]} 71. Rd8 {[%clk 0:00:13.3]} 71...
Kf4 {[%clk 0:01:25.2]} 72. Rc8 {[%clk 0:00:13.6]} 72... Rxc8 {[%clk 0:01:23.9]}
0-1

[Event "*** MasterClass Titled Tuesday Blitz"]
[Site "Chess.com"]
[Date "2017.11.07"]
[Round "3"]
[White "Salem-AR"]
[Black "yurisolo"]
[Result "1-0"]
[WhiteElo "2800"]
[BlackElo "2583"]
[TimeControl "180+2"]
[EndTime "14:45:21 PST"]
[Termination "Salem-AR won on time"]

1. d4 {[%clk 0:03:01.9]} 1... Nf6 {[%clk 0:02:58.6]} 2. c4 {[%clk 0:03:03]} 2...
c6 {[%clk 0:02:58.5]} 3. Nf3 {[%clk 0:03:03.4]} 3... d5 {[%clk 0:02:58.3]} 4.
Nc3 {[%clk 0:03:04.8]} 4... e6 {[%clk 0:02:59.2]} 5. Bg5 {[%clk 0:03:05.2]} 5...
dxc4 {[%clk 0:02:58.9]} 6. e4 {[%clk 0:03:06]} 6... b5 {[%clk 0:02:56.3]} 7. e5
{[%clk 0:03:07.2]} 7... h6 {[%clk 0:02:56.3]} 8. Bh4 {[%clk 0:03:08.8]} 8... g5
{[%clk 0:02:56.3]} 9. Bg3 {[%clk 0:03:10.4]} 9... Nh5 {[%clk 0:02:50]} 10. Be2
{[%clk 0:03:10.2]} 10... Bb7 {[%clk 0:02:41.2]} 11. a4 {[%clk 0:03:09.2]} 11...
b4 {[%clk 0:02:26.6]} 12. Ne4 {[%clk 0:03:09.8]} 12... c5 {[%clk 0:02:24.5]} 13.
Nxc5 {[%clk 0:02:39.8]} 13... Bxc5 {[%clk 0:02:23.9]} 14. dxc5 {[%clk
0:02:41.7]} 14... Qxd1+ {[%clk 0:02:25.1]} 15. Rxd1 {[%clk 0:02:43.6]} 15... Nd7
{[%clk 0:02:25.6]} 16. Bxc4 {[%clk 0:02:26.8]} 16... Nxc5 {[%clk 0:01:58.5]} 17.
Nd4 {[%clk 0:02:25.9]} 17... a6 {[%clk 0:01:37.5]} 18. a5 {[%clk 0:01:58.9]}
18... Bxg2 {[%clk 0:01:34.9]} 19. Rg1 {[%clk 0:02:00.3]} 19... Bb7 {[%clk
0:01:30.3]} 20. h4 {[%clk 0:01:56.6]} 20... Ke7 {[%clk 0:01:05]} 21. Bh2 {[%clk
0:01:56.3]} 21... Nf4 {[%clk 0:00:58.4]} 22. Bxf4 {[%clk 0:01:32.5]} 22... gxf4
{[%clk 0:00:59.3]} 23. Ke2 {[%clk 0:01:27]} 23... Nd7 {[%clk 0:00:53.5]} 24.
Bxe6 {[%clk 0:01:13.1]} 24... Nxe5 {[%clk 0:00:46.5]} 25. Bb3 {[%clk 0:01:12.9]}
25... Kf6 {[%clk 0:00:37.9]} 26. Kf1 {[%clk 0:00:36]} 26... Rhg8 {[%clk
0:00:37]} 27. Rxg8 {[%clk 0:00:31]} 27... Rxg8 {[%clk 0:00:36.4]} 28. Rc1 {[%clk
0:00:32.7]} 28... Bg2+ {[%clk 0:00:30.2]} 29. Ke2 {[%clk 0:00:32.2]} 29... Re8
{[%clk 0:00:27.8]} 30. Rc7 {[%clk 0:00:20.9]} 30... Nf3+ {[%clk 0:00:20.3]} 31.
Kd1 {[%clk 0:00:20]} 31... Nxd4 {[%clk 0:00:17.2]} 32. Bc4 {[%clk 0:00:15.7]}
32... Bf3+ {[%clk 0:00:16.9]} 33. Kd2 {[%clk 0:00:17.1]} 33... Be2 {[%clk
0:00:15.3]} 34. Bd5 {[%clk 0:00:13.8]} 34... Bb5 {[%clk 0:00:15.1]} 35. Rxf7+
{[%clk 0:00:14.3]} 35... Kg6 {[%clk 0:00:13]} 36. Rxf4 {[%clk 0:00:14.1]} 36...
Ne6 {[%clk 0:00:11.6]} 37. Re4 {[%clk 0:00:12.2]} 37... Nc7 {[%clk 0:00:08.4]}
38. Rg4+ {[%clk 0:00:08.4]} 38... Kf5 {[%clk 0:00:08.4]} 39. Bf3 {[%clk
0:00:10.1]} 39... Rd8+ {[%clk 0:00:05.7]} 40. Kc1 {[%clk 0:00:11.7]} 40... Ne6
{[%clk 0:00:05]} 41. Rxb4 {[%clk 0:00:12.1]} 41... Nd4 {[%clk 0:00:05.3]} 42.
Bd1 {[%clk 0:00:13.7]} 42... Kf4 {[%clk 0:00:04.6]} 43. b3 {[%clk 0:00:10.5]}
43... Ke5 {[%clk 0:00:04.4]} 44. Kb2 {[%clk 0:00:11.7]} 44... Kd5 {[%clk
0:00:04.6]} 45. Kc3 {[%clk 0:00:11.1]} 45... Kc5 {[%clk 0:00:05.4]} 46. Bg4
{[%clk 0:00:12.6]} 46... Rd6 {[%clk 0:00:02]} 47. f4 {[%clk 0:00:14.1]} 47...
Rd8 {[%clk 0:00:02.3]} 48. f5 {[%clk 0:00:14.9]} 48... Rd6 {[%clk 0:00:03.4]}
49. f6 {[%clk 0:00:16]} 1-0

[Event "*** MasterClass Titled Tuesday Blitz"]
[Site "Chess.com"]
[Date "2017.11.07"]
[Round "3"]
[White "AkshatChandra"]
[Black "GMHess"]
[Result "1/2-1/2"]
[WhiteElo "2743"]
[BlackElo "2579"]
[TimeControl "180+2"]
[EndTime "14:45:30 PST"]
[Termination "Game drawn by agreement"]

1. d4 {[%clk 0:03:01.9]} 1... Nf6 {[%clk 0:02:59.6]} 2. Nf3 {[%clk 0:03:03]}
2... e6 {[%clk 0:03:01]} 3. Bf4 {[%clk 0:03:03.6]} 3... d5 {[%clk 0:02:41.9]} 4.
e3 {[%clk 0:03:04.5]} 4... c5 {[%clk 0:02:34.1]} 5. c3 {[%clk 0:03:05.6]} 5...
Nc6 {[%clk 0:02:32.7]} 6. Nbd2 {[%clk 0:03:06.9]} 6... Nh5 {[%clk 0:02:32.7]} 7.
Bg5 {[%clk 0:03:01.9]} 7... Be7 {[%clk 0:02:27.6]} 8. Bxe7 {[%clk 0:02:59.9]}
8... Qxe7 {[%clk 0:02:29.5]} 9. Bb5 {[%clk 0:02:54]} 9... Nf6 {[%clk 0:02:14.7]}
10. O-O {[%clk 0:02:45.1]} 10... Bd7 {[%clk 0:02:09.5]} 11. Re1 {[%clk
0:02:21.4]} 11... O-O {[%clk 0:02:05.3]} 12. Bd3 {[%clk 0:02:22.1]} 12... e5
{[%clk 0:01:56.5]} 13. e4 {[%clk 0:02:13.3]} 13... cxd4 {[%clk 0:01:31.2]} 14.
cxd4 {[%clk 0:02:13]} 14... dxe4 {[%clk 0:01:03.1]} 15. Nxe4 {[%clk 0:01:53.8]}
15... Bg4 {[%clk 0:00:25.2]} 16. Nxf6+ {[%clk 0:01:33.4]} 16... Qxf6 {[%clk
0:00:27.1]} 17. dxe5 {[%clk 0:01:09.1]} 17... Nxe5 {[%clk 0:00:26.3]} 18. Rxe5
{[%clk 0:01:08.1]} 18... Bxf3 {[%clk 0:00:27.4]} 19. Qe1 {[%clk 0:01:09.2]}
19... Bc6 {[%clk 0:00:17.4]} 20. Qc3 {[%clk 0:00:36.3]} 20... g6 {[%clk
0:00:14.9]} 21. Rae1 {[%clk 0:00:36]} 21... Rad8 {[%clk 0:00:14.9]} 22. Bf1
{[%clk 0:00:36.1]} 22... Rd6 {[%clk 0:00:15.4]} 23. b4 {[%clk 0:00:26.8]} 23...
a6 {[%clk 0:00:16.3]} 24. Qc5 {[%clk 0:00:27]} 24... Rd2 {[%clk 0:00:15.1]} 25.
a3 {[%clk 0:00:25]} 25... h6 {[%clk 0:00:13.8]} 26. Qe3 {[%clk 0:00:25.7]} 26...
Rfd8 {[%clk 0:00:12.7]} 27. h3 {[%clk 0:00:10.1]} 27... Rd1 {[%clk 0:00:11.6]}
28. Qxh6 {[%clk 0:00:05.3]} 28... Bb5 {[%clk 0:00:07.6]} 29. Qe3 {[%clk
0:00:04.4]} 29... Rxe1 {[%clk 0:00:08.1]} 30. Qxe1 {[%clk 0:00:05]} 30... Bxf1
{[%clk 0:00:09.7]} 31. Kxf1 {[%clk 0:00:06.9]} 31... Rd3 {[%clk 0:00:10.1]} 32.
Re3 {[%clk 0:00:05.5]} 32... Rxe3 {[%clk 0:00:10.3]} 33. Qxe3 {[%clk 0:00:07.4]}
33... Qa1+ {[%clk 0:00:11.4]} 34. Ke2 {[%clk 0:00:09.1]} 34... Qb2+ {[%clk
0:00:12.5]} 35. Kf3 {[%clk 0:00:10.8]} 35... Kg7 {[%clk 0:00:10.4]} 36. g4
{[%clk 0:00:12.2]} 36... b5 {[%clk 0:00:09.8]} 37. h4 {[%clk 0:00:12.6]} 37...
Qc2 {[%clk 0:00:07.9]} 38. Kg3 {[%clk 0:00:12.6]} 38... Kh7 {[%clk 0:00:08.3]}
39. f3 {[%clk 0:00:12.5]} 39... Qd1 {[%clk 0:00:07.9]} 40. h5 {[%clk 0:00:07.8]}
40... gxh5 {[%clk 0:00:07.5]} 41. gxh5 {[%clk 0:00:09.4]} 41... Kg8 {[%clk
0:00:03.1]} 42. Qe8+ {[%clk 0:00:07]} 42... Kg7 {[%clk 0:00:04.3]} 43. Qe5+
{[%clk 0:00:08.6]} 43... Kg8 {[%clk 0:00:04.2]} 44. Qg5+ {[%clk 0:00:09.1]}
44... Kf8 {[%clk 0:00:05]} 45. Qc5+ {[%clk 0:00:09.1]} 45... Ke8 {[%clk
0:00:05.1]} 46. h6 {[%clk 0:00:07]} 46... Qe1+ {[%clk 0:00:04.9]} 47. Kf4 {[%clk
0:00:07.3]} 47... Qh4+ {[%clk 0:00:05.7]} 48. Ke5 {[%clk 0:00:03.8]} 48... Qg5+
{[%clk 0:00:05.9]} 49. Kd4 {[%clk 0:00:04.4]} 49... Qd2+ {[%clk 0:00:05.2]} 50.
Ke4 {[%clk 0:00:05.3]} 50... Qxh6 {[%clk 0:00:05.5]} 51. Qc8+ {[%clk 0:00:06]}
51... Ke7 {[%clk 0:00:06.7]} 52. Qc7+ {[%clk 0:00:06.7]} 52... Kf8 {[%clk
0:00:06.1]} 53. Qb8+ {[%clk 0:00:07.6]} 53... Ke7 {[%clk 0:00:06.8]} 54. Qb7+
{[%clk 0:00:08.6]} 54... Kf8 {[%clk 0:00:08.2]} 55. Kd4 {[%clk 0:00:05.3]} 55...
Qd6+ {[%clk 0:00:07.3]} 56. Qd5 {[%clk 0:00:05.9]} 56... Qf4+ {[%clk 0:00:08.3]}
57. Kc5 {[%clk 0:00:06.9]} 57... Qc1+ {[%clk 0:00:09.5]} 58. Kb6 {[%clk
0:00:05.9]} 58... Qxa3 {[%clk 0:00:11.1]} 59. Qd8+ {[%clk 0:00:06.6]} 59... Kg7
{[%clk 0:00:12.3]} 60. Qg5+ {[%clk 0:00:08.3]} 60... Kf8 {[%clk 0:00:13.8]} 61.
Qd8+ {[%clk 0:00:09.5]} 61... Kg7 {[%clk 0:00:15.2]} 62. Qg5+ {[%clk 0:00:09.6]}
62... Kf8 {[%clk 0:00:15.8]} 1/2-1/2

[Event "*** MasterClass Titled Tuesday Blitz"]
[Site "Chess.com"]
[Date "2017.11.07"]
[Round "3"]
[White "timator"]
[Black "Sanan_Sjugirov"]
[Result "1/2-1/2"]
[WhiteElo "2422"]
[BlackElo "2648"]
[TimeControl "180+2"]
[EndTime "14:45:31 PST"]
[Termination "Game drawn - insufficient material"]

1. Nf3 {[%clk 0:03:01.9]} 1... d5 {[%clk 0:02:59.8]} 2. g3 {[%clk 0:03:02.8]}
2... Bg4 {[%clk 0:03:00.1]} 3. Bg2 {[%clk 0:03:03.7]} 3... Nd7 {[%clk
0:03:01.2]} 4. d4 {[%clk 0:03:04.2]} 4... e6 {[%clk 0:03:01.8]} 5. h3 {[%clk
0:03:05.1]} 5... Bh5 {[%clk 0:03:01.2]} 6. O-O {[%clk 0:03:06.1]} 6... Ngf6
{[%clk 0:03:00.7]} 7. c4 {[%clk 0:03:07.3]} 7... c6 {[%clk 0:02:59.5]} 8. Nc3
{[%clk 0:03:07.7]} 8... Be7 {[%clk 0:02:55.9]} 9. Ne5 {[%clk 0:03:07.8]} 9...
Nxe5 {[%clk 0:02:53.9]} 10. dxe5 {[%clk 0:03:08.7]} 10... Nd7 {[%clk 0:02:55.1]}
11. cxd5 {[%clk 0:03:09.7]} 11... cxd5 {[%clk 0:02:55.3]} 12. f4 {[%clk
0:03:10]} 12... f6 {[%clk 0:02:24.5]} 13. f5 {[%clk 0:02:49.9]} 13... Nxe5
{[%clk 0:02:02.7]} 14. fxe6 {[%clk 0:02:49.3]} 14... O-O {[%clk 0:01:35.4]} 15.
Be3 {[%clk 0:02:42.7]} 15... Nc4 {[%clk 0:01:25.3]} 16. Bf2 {[%clk 0:02:39.6]}
16... Nb6 {[%clk 0:01:09]} 17. g4 {[%clk 0:02:36.3]} 17... Be8 {[%clk
0:01:06.2]} 18. Nxd5 {[%clk 0:02:36.1]} 18... Nxd5 {[%clk 0:01:05.2]} 19. Qxd5
{[%clk 0:02:37.3]} 19... Bc6 {[%clk 0:00:59.8]} 20. Qxd8 {[%clk 0:02:37.6]}
20... Rfxd8 {[%clk 0:01:01.3]} 21. Bxc6 {[%clk 0:02:39.1]} 21... bxc6 {[%clk
0:01:03.2]} 22. Rad1 {[%clk 0:02:40.3]} 22... Kf8 {[%clk 0:00:58.2]} 23. b3
{[%clk 0:02:37.7]} 23... Ke8 {[%clk 0:00:58.2]} 24. Be3 {[%clk 0:02:27.3]} 24...
Bd6 {[%clk 0:00:49]} 25. Rd3 {[%clk 0:02:24.6]} 25... Ke7 {[%clk 0:00:49]} 26.
Rfd1 {[%clk 0:02:25.6]} 26... Kxe6 {[%clk 0:00:46.9]} 27. Kg2 {[%clk 0:02:26.8]}
27... a6 {[%clk 0:00:44]} 28. Bc5 {[%clk 0:01:01.7]} 28... Bc7 {[%clk
0:00:39.5]} 29. Kf3 {[%clk 0:00:59.4]} 29... Rd5 {[%clk 0:00:34.9]} 30. Rxd5
{[%clk 0:00:57.4]} 30... cxd5 {[%clk 0:00:36.8]} 31. Bf2 {[%clk 0:00:53.9]}
31... Be5 {[%clk 0:00:35.5]} 32. Rc1 {[%clk 0:00:54.8]} 32... a5 {[%clk
0:00:26.6]} 33. Rc6+ {[%clk 0:00:41.8]} 33... Kd7 {[%clk 0:00:26.9]} 34. Rc5
{[%clk 0:00:43.2]} 34... Kd6 {[%clk 0:00:26.3]} 35. Rb5 {[%clk 0:00:44.6]} 35...
a4 {[%clk 0:00:20.9]} 36. b4 {[%clk 0:00:45.5]} 36... a3 {[%clk 0:00:18.3]} 37.
Bc5+ {[%clk 0:00:44]} 37... Kc7 {[%clk 0:00:12.5]} 38. Ra5 {[%clk 0:00:23.1]}
38... Rxa5 {[%clk 0:00:08.7]} 39. bxa5 {[%clk 0:00:25]} 39... Kc6 {[%clk
0:00:05.4]} 40. a6 {[%clk 0:00:25.7]} 40... g6 {[%clk 0:00:03.9]} 41. Bxa3
{[%clk 0:00:19.4]} 41... Kb6 {[%clk 0:00:04.8]} 42. e4 {[%clk 0:00:19.5]} 42...
dxe4+ {[%clk 0:00:03.9]} 43. Kxe4 {[%clk 0:00:20.7]} 43... Kxa6 {[%clk
0:00:05.4]} 44. Be7 {[%clk 0:00:21.1]} 44... Bb2 {[%clk 0:00:05.7]} 45. Kd5
{[%clk 0:00:21.3]} 45... f5 {[%clk 0:00:06.9]} 46. gxf5 {[%clk 0:00:21.5]} 46...
gxf5 {[%clk 0:00:08.8]} 47. Bg5 {[%clk 0:00:23]} 47... Kb5 {[%clk 0:00:09.2]}
48. Ke6 {[%clk 0:00:24.3]} 48... Ka4 {[%clk 0:00:09.6]} 49. Kxf5 {[%clk
0:00:24.7]} 49... Ka3 {[%clk 0:00:11]} 50. Bf6 {[%clk 0:00:25.9]} 50... Bc1
{[%clk 0:00:11.1]} 51. Bg5 {[%clk 0:00:21.2]} 51... Bb2 {[%clk 0:00:11.9]} 52.
Ke6 {[%clk 0:00:22.4]} 52... Kxa2 {[%clk 0:00:12.9]} 53. Kf7 {[%clk 0:00:24.3]}
53... Kb3 {[%clk 0:00:14.1]} 54. Kg8 {[%clk 0:00:25.8]} 54... h5 {[%clk
0:00:15]} 55. Kh7 {[%clk 0:00:27.1]} 55... Kc4 {[%clk 0:00:15.9]} 56. Kg6 {[%clk
0:00:28.7]} 56... Kd5 {[%clk 0:00:15.4]} 57. Kxh5 {[%clk 0:00:30.2]} 57... Bc3
{[%clk 0:00:15.5]} 58. Kg6 {[%clk 0:00:31.3]} 58... Be1 {[%clk 0:00:16.6]} 59.
Kf5 {[%clk 0:00:31.6]} 59... Bf2 {[%clk 0:00:15.7]} 60. h4 {[%clk 0:00:22.1]}
60... Bxh4 {[%clk 0:00:16.1]} 1/2-1/2

[Event "*** MasterClass Titled Tuesday Blitz"]
[Site "Chess.com"]
[Date "2017.11.07"]
[Round "3"]
[White "GrigorGrigorov"]
[Black "tango_argentino"]
[Result "0-1"]
[WhiteElo "2621"]
[BlackElo "2494"]
[TimeControl "180+2"]
[EndTime "14:45:33 PST"]
[Termination "tango_argentino won by resignation"]

1. d4 {[%clk 0:03:01.9]} 1... Nf6 {[%clk 0:03:00.2]} 2. c4 {[%clk 0:03:02.7]}
2... g6 {[%clk 0:03:01.4]} 3. Nf3 {[%clk 0:03:02.8]} 3... Bg7 {[%clk 0:03:02.8]}
4. g3 {[%clk 0:03:03.9]} 4... O-O {[%clk 0:03:01.8]} 5. Bg2 {[%clk 0:03:04.1]}
5... d6 {[%clk 0:03:01.2]} 6. O-O {[%clk 0:03:04.4]} 6... Nc6 {[%clk 0:03:02.8]}
7. Nc3 {[%clk 0:03:04.9]} 7... e5 {[%clk 0:03:03.8]} 8. dxe5 {[%clk 0:03:02.1]}
8... Nxe5 {[%clk 0:03:01.5]} 9. Nxe5 {[%clk 0:03:01.4]} 9... dxe5 {[%clk
0:03:03.4]} 10. Qxd8 {[%clk 0:03:01.4]} 10... Rxd8 {[%clk 0:03:05.3]} 11. Bg5
{[%clk 0:03:01.7]} 11... Rd4 {[%clk 0:03:02.5]} 12. Rfd1 {[%clk 0:03:00.3]}
12... c6 {[%clk 0:02:56.9]} 13. Be3 {[%clk 0:02:49.9]} 13... Rxd1+ {[%clk
0:02:49.3]} 14. Rxd1 {[%clk 0:02:49.9]} 14... Be6 {[%clk 0:02:49.8]} 15. b3
{[%clk 0:02:50.3]} 15... Kf8 {[%clk 0:02:32.2]} 16. Na4 {[%clk 0:02:45.1]} 16...
Nd7 {[%clk 0:02:29.4]} 17. h4 {[%clk 0:02:25.3]} 17... h5 {[%clk 0:02:28.6]} 18.
Nc3 {[%clk 0:01:57.1]} 18... f5 {[%clk 0:02:21.7]} 19. Na4 {[%clk 0:01:38.2]}
19... Ke8 {[%clk 0:02:06.2]} 20. Bg5 {[%clk 0:01:29.5]} 20... Bf8 {[%clk
0:01:58.9]} 21. e4 {[%clk 0:01:28.7]} 21... Nc5 {[%clk 0:01:39]} 22. Nc3 {[%clk
0:01:22.6]} 22... Be7 {[%clk 0:01:26.7]} 23. exf5 {[%clk 0:01:11.4]} 23... gxf5
{[%clk 0:01:19.4]} 24. Bf3 {[%clk 0:00:52.8]} 24... Bf7 {[%clk 0:01:20]} 25. Re1
{[%clk 0:00:46.7]} 25... Bxg5 {[%clk 0:01:12.2]} 26. hxg5 {[%clk 0:00:45.8]}
26... e4 {[%clk 0:01:13.8]} 27. Be2 {[%clk 0:00:31.2]} 27... Ne6 {[%clk
0:01:05.2]} 28. f3 {[%clk 0:00:21.5]} 28... exf3 {[%clk 0:00:50.6]} 29. Bxf3
{[%clk 0:00:21.9]} 29... Kd7 {[%clk 0:00:52.2]} 30. Rd1+ {[%clk 0:00:18.4]}
30... Ke7 {[%clk 0:00:45.5]} 31. Ne2 {[%clk 0:00:19.4]} 31... Nxg5 {[%clk
0:00:44]} 32. Bg2 {[%clk 0:00:20.9]} 32... Rd8 {[%clk 0:00:44]} 33. Rxd8 {[%clk
0:00:20]} 33... Kxd8 {[%clk 0:00:45.9]} 34. Kf2 {[%clk 0:00:21.4]} 34... Ke7
{[%clk 0:00:46.7]} 35. Ke3 {[%clk 0:00:22.2]} 35... Kf6 {[%clk 0:00:48.2]} 36.
Nf4 {[%clk 0:00:21.9]} 36... a5 {[%clk 0:00:40.9]} 37. Bh1 {[%clk 0:00:22.5]}
37... Be8 {[%clk 0:00:40.3]} 38. Bg2 {[%clk 0:00:23.4]} 38... Bf7 {[%clk
0:00:37.2]} 39. Nd3 {[%clk 0:00:24.2]} 39... Ne6 {[%clk 0:00:31.7]} 40. Bf3
{[%clk 0:00:24.1]} 40... Kg5 {[%clk 0:00:30.8]} 41. Be2 {[%clk 0:00:23.4]} 41...
Be8 {[%clk 0:00:31.4]} 42. Bf3 {[%clk 0:00:23.8]} 42... b6 {[%clk 0:00:31.9]}
43. a3 {[%clk 0:00:21.7]} 43... c5 {[%clk 0:00:32.6]} 44. Bd5 {[%clk 0:00:21.7]}
44... Nd4 {[%clk 0:00:32.6]} 45. Nc1 {[%clk 0:00:18]} 45... Nc2+ {[%clk
0:00:27.9]} 46. Kd2 {[%clk 0:00:15.7]} 46... Nxa3 {[%clk 0:00:29]} 47. Kc3
{[%clk 0:00:16.6]} 47... b5 {[%clk 0:00:27.7]} 48. Nd3 {[%clk 0:00:17.4]} 48...
b4+ {[%clk 0:00:25.7]} 49. Kb2 {[%clk 0:00:16.2]} 49... Kg4 {[%clk 0:00:24.1]}
50. Nxc5 {[%clk 0:00:17.7]} 50... Kxg3 {[%clk 0:00:24.2]} 51. Ne6 {[%clk
0:00:17.4]} 51... f4 {[%clk 0:00:23]} 52. Nd4 {[%clk 0:00:17]} 52... h4 {[%clk
0:00:21.4]} 53. Ne2+ {[%clk 0:00:15.1]} 53... Kg4 {[%clk 0:00:22.9]} 54. Nd4
{[%clk 0:00:17]} 54... Bd7 {[%clk 0:00:20.8]} 55. c5 {[%clk 0:00:16.5]} 55... h3
{[%clk 0:00:20.2]} 56. c6 {[%clk 0:00:17.3]} 56... Bc8 {[%clk 0:00:21.8]} 57. c7
{[%clk 0:00:17.2]} 57... h2 {[%clk 0:00:22.5]} 58. Kc1 {[%clk 0:00:18.2]} 58...
Kg3 {[%clk 0:00:21.5]} 59. Ne2+ {[%clk 0:00:18]} 59... Kf2 {[%clk 0:00:22.4]}
60. Nxf4 {[%clk 0:00:18.8]} 60... Nb5 {[%clk 0:00:22.5]} 61. Nd3+ {[%clk
0:00:18.1]} 61... Ke3 {[%clk 0:00:22.2]} 62. Ne5 {[%clk 0:00:18.6]} 62... Kd4
{[%clk 0:00:23.3]} 63. Nf3+ {[%clk 0:00:18.4]} 63... Kxd5 {[%clk 0:00:24.7]} 64.
Nxh2 {[%clk 0:00:20.3]} 64... Nxc7 {[%clk 0:00:26.3]} 65. Kb2 {[%clk 0:00:21.9]}
65... Nb5 {[%clk 0:00:27.5]} 0-1